[Event "69th RUS-ch Women Higher League 2019"]
[Site "Yaroslavl"]
[Date "2019.06.27"]
[Round "1.7"]
[White "Bykova, Anastasia"]
[Black "Guseva, Marina"]
[Result "1/2-1/2"]
[ECO "E15"]
[WhiteElo "2229"]
[BlackElo "2379"]
[Annotator "NA"]
[PlyCount "97"]
[EventDate "2019.06.27"]
[EventType "swiss"]
[EventCountry "RUS"]
[SourceTitle "playchess.com"]
[Source "ChessBase"]
[SourceQuality "1"]
[TimeControl "40/5400+30:1800+30"]

1. d4 {[%emt 0:00:00]} Nf6 {[%emt 0:00:00]} 2. c4 {[%emt 0:00:00]} e6 {[%emt 0:00:00]} 3. Nf3 {[%emt 0:00:00]} b6 {[%emt 0:00:00]} 4. g3 {[%emt 0:00:00]} Ba6 $11 {[%emt 0:00:00]} 5. b3 {[%emt 0:00:00]} Bb4+ {[%emt 0:00:00]} 6. Bd2 {[%emt 0:00:04]} Be7 {[%emt 0:00:00]} 7. Bg2 {[%emt 0:00:07]} c6 {[%emt 0:00:27]} 8. Bc3 {[%emt 0:00:22]} d5 {[%emt 0:01:17]} 9. Nbd2 {[%emt 0:00:15]} O-O {[%emt 0:00:45]} 10. O-O {[%emt 0:05:15]} Nbd7 {[%emt 0:00:19]} 11. Re1 {[%emt 0:03:10]} c5 {[%emt 0:04:42]} 12. cxd5 {[%emt 0:04:07]} exd5 {[%emt 0:14:50]} 13. Bb2 {[%emt 0:15:01]} Bb7 {[%emt 0:02:26]} 14. Rc1 {[%emt 0:20:25]} Re8 {[%emt 0:02:27]} 15. Ne5 {[%emt 0:03:47]} Rc8 {[%emt 0:16:12]} 16. e4 {[%emt 0:16:52]} dxe4 {[%emt 0:22:48]} 17. Nxe4 {[%emt 0:01:06]} Bxe4 {[%emt 0:02:36]} 18. Bxe4 {[%emt 0:01:54]} Nxe4 {[%emt 0:00:19]} 19. Rxe4 {[%emt 0:00:37]} Bf8 {[%emt 0:10:40]} 20. Re2 {[%emt 0:13:12]} Nf6 {[%emt 0:05:13]} 21. dxc5 {[%emt 0:01:21]} Qxd1+ {[%emt 0:03:15]} 22. Rxd1 {[%emt 0:00:04]} Bxc5 {[%emt 0:00:07]} 23. Kf1 {[%emt 0:00:40]} h5 {[%emt 0:02:44]} 24. Nd7 {[%emt 0:03:34]} Nxd7 {[%emt 0:00:19]} 25. Rxe8+ {[%emt 0:01:01]} Rxe8 {[%emt 0:00:04]} 26. Rxd7 {[%emt 0:00:03]} a5 {[%emt 0:00:14]} 27. Rd5 {[%emt 0:06:08]} g6 {[%emt 0:00:07]} 28. a4 {[%emt 0:01:47]} Kf8 {[%emt 0:02:12]} 29. Bf6 {[%emt 0:00:28]} Rc8 {[%emt 0:00:09]} 30. Ke2 {[%emt 0:01:07]} Be7 {[%emt 0:02:11]} 31. Bd4 {[%emt 0:00:12]} Rc6 {[%emt 0:00:11]} 32. Rb5 {[%emt 0:00:51]} Bd8 {[%emt 0:00:04]} 33. Kd3 {[%emt 0:00:44]} Ke7 {[%emt 0:00:06]} 34. f3 {[%emt 0:01:03]} Kd7 {[%emt 0:03:16]} 35. g4 {[%emt 0:00:56]} hxg4 {[%emt 0:00:04]} 36. fxg4 {[%emt 0:00:03]} Rd6 {[%emt 0:00:04]} 37. Ke4 {[%emt 0:00:47]} Re6+ {[%emt 0:00:43]} 38. Re5 {[%emt 0:00:31]} Rc6 {[%emt 0:03:06]} 39. Rd5+ {[%emt 0:00:19]} Kc8 {[%emt 0:00:51]} 40. h3 {[%emt 0:00:00]} Bh4 {[%emt 0:00:00]} 41. Rb5 {[%emt 0:06:18]} Kc7 {[%emt 0:04:00]} 42. Kf4 {[%emt 0:02:01]} Re6 {[%emt 0:02:34]} 43. Kf3 {[%emt 0:04:00]} Rc6 {[%emt 0:04:21]} 44. Ke4 {[%emt 0:01:41]} Be1 {[%emt 0:04:54]} 45. Re5 {[%emt 0:01:34]} Kd7 {[%emt 0:00:35]} 46. Rb5 {[%emt 0:02:44]} Kc7 {[%emt 0:00:09]} 47. Re5 {[%emt 0:01:12]} Kd7 {[%emt 0:00:15]} 48. Rb5 {[%emt 0:00:04]} Kc7 {[%emt 0:00:07]} 49. Re5 {[%emt 0:00:05]} 1/2-1/2

[Event "69th RUS-ch Women Higher League 2019"]
[Site "Yaroslavl"]
[Date "2019.06.27"]
[Round "1.8"]
[White "Ovod, Evgenija"]
[Black "Lysenko, Margarita"]
[Result "1-0"]
[ECO "B54"]
[WhiteElo "2361"]
[BlackElo "2224"]
[Annotator "NA"]
[PlyCount "99"]
[EventDate "2019.06.27"]
[EventType "swiss"]
[EventCountry "RUS"]
[SourceTitle "playchess.com"]
[Source "ChessBase"]
[SourceQuality "1"]
[TimeControl "40/5400+30:1800+30"]

1. e4 {[%emt 0:00:00]} c5 {[%emt 0:00:00]} 2. Nf3 {[%emt 0:00:00]} d6 {[%emt 0:00:00]} 3. d4 {[%emt 0:00:00]} cxd4 {[%emt 0:00:14]} 4. Nxd4 {[%emt 0:00:00]} Nf6 {[%emt 0:00:09]} 5. f3 {[%emt 0:00:01]} e5 {[%emt 0:00:32]} 6. Nb3 {[%emt 0:00:06]} Be6 {[%emt 0:01:58]} 7. c4 {[%emt 0:00:08]} Be7 {[%emt 0:03:39]} 8. Nc3 {[%emt 0:00:07]} O-O {[%emt 0:00:53]} 9. Be3 {[%emt 0:00:04]} Nc6 {[%emt 0:01:10]} 10. Be2 {[%emt 0:00:10]} a5 {[%emt 0:16:48]} 11. O-O {[%emt 0:14:56]} a4 {[%emt 0:09:35]} 12. Nd2 {[%emt 0:01:20]} Nd4 {[%emt 0:23:30]} 13. Bd3 {[%emt 0:19:07]} Qa5 {[%emt 0:08:49]} 14. Ne2 {[%emt 0:33:50]} Nxe2+ {[%emt 0:04:43]} 15. Qxe2 {[%emt 0:00:02]} Nd7 {[%emt 0:05:20]} 16. Kh1 {[%emt 0:05:53]} Bd8 {[%emt 0:05:14]} 17. Nb1 {[%emt 0:00:58]} Nc5 {[%emt 0:09:06]} 18. Bd2 {[%emt 0:06:43]} Qa6 {[%emt 0:03:26]} 19. Na3 {[%emt 0:02:10]} Rc8 {[%emt 0:01:37]} 20. Bc2 {[%emt 0:04:47]} Ba5 {[%emt 0:01:05]} 21. b4 {[%emt 0:00:40]} axb3 {[%emt 0:00:17]} 22. axb3 {[%emt 0:00:04]} Bxd2 {[%emt 0:00:55]} 23. Qxd2 {[%emt 0:00:04]} Ra8 {[%emt 0:01:36]} 24. h3 {[%emt 0:03:45]} Rfd8 {[%emt 0:00:39]} 25. Kh2 {[%emt 0:01:33]} Qb6 {[%emt 0:00:39]} 26. Nb5 {[%emt 0:00:53]} Rac8 {[%emt 0:00:26]} 27. Rfd1 {[%emt 0:01:28]} Rd7 {[%emt 0:00:28]} 28. Qe3 {[%emt 0:02:55]} Qd8 {[%emt 0:00:37]} 29. Rd2 {[%emt 0:00:33]} b6 {[%emt 0:00:22]} 30. Rad1 {[%emt 0:01:18]} Nb7 {[%emt 0:00:15]} 31. Rd3 {[%emt 0:01:05]} Rc6 {[%emt 0:00:45]} 32. Ra1 {[%emt 0:00:42]} Nc5 {[%emt 0:00:27]} 33. Rd2 {[%emt 0:00:14]} h6 {[%emt 0:00:37]} 34. Bd1 {[%emt 0:00:20]} g5 {[%emt 0:00:31]} 35. Rda2 {[%emt 0:00:33]} Kg7 {[%emt 0:00:34]} 36. g3 {[%emt 0:00:51]} Rc8 {[%emt 0:00:30]} 37. Be2 {[%emt 0:00:23]} Qe7 {[%emt 0:00:30]} 38. Ra8 {[%emt 0:00:27]} Rxa8 {[%emt 0:00:20]} 39. Rxa8 {[%emt 0:00:03]} Rd8 {[%emt 0:00:34]} 40. Ra7 {[%emt 0:00:00]} Rd7 {[%emt 0:00:00]} 41. Ra1 {[%emt 0:05:54]} Rd8 {[%emt 0:22:23]} 42. b4 {[%emt 0:00:23]} Nd7 {[%emt 0:00:10]} 43. Rd1 {[%emt 0:00:07]} Ra8 {[%emt 0:07:03]} 44. Qb3 {[%emt 0:01:59]} h5 {[%emt 0:01:23]} 45. Nxd6 {[%emt 0:02:39]} g4 {[%emt 0:00:31]} 46. fxg4 {[%emt 0:06:15]} hxg4 {[%emt 0:00:10]} 47. Bxg4 {[%emt 0:00:12]} Bxg4 {[%emt 0:00:31]} 48. hxg4 {[%emt 0:00:03]} Rh8+ {[%emt 0:02:19]} 49. Kg1 {[%emt 0:03:29]} Kg6 {[%emt 0:00:37]} 50. Qf3 {[%emt 0:05:02]} 1-0

[Event "69th RUS-ch Women Higher League 2019"]
[Site "Yaroslavl"]
[Date "2019.06.27"]
[Round "1.9"]
[White "Utiatskaja, Irina"]
[Black "Ambartsumova, Karina"]
[Result "1/2-1/2"]
[ECO "B45"]
[WhiteElo "2192"]
[BlackElo "2359"]
[Annotator "NA"]
[PlyCount "82"]
[EventDate "2019.06.27"]
[EventType "swiss"]
[EventCountry "RUS"]
[SourceTitle "playchess.com"]
[Source "ChessBase"]
[SourceQuality "1"]
[TimeControl "40/5400+30:1800+30"]

1. e4 {[%emt 0:00:00]} c5 {[%emt 0:00:01]} 2. Nf3 {[%emt 0:00:00]} e6 {[%emt 0:00:39]} 3. d4 {[%emt 0:00:22]} cxd4 {[%emt 0:00:10]} 4. Nxd4 {[%emt 0:00:03]} Nc6 {[%emt 0:01:09]} 5. Nc3 {[%emt 0:01:12]} d6 {[%emt 0:01:14]} 6. Be3 {[%emt 0:09:44]} Nf6 {[%emt 0:02:00]} 7. f3 {[%emt 0:01:38]} Be7 {[%emt 0:02:32]} 8. Qd2 {[%emt 0:00:47]} O-O {[%emt 0:02:30]} 9. O-O-O {[%emt 0:09:34]} d5 {[%emt 0:04:04]} 10. exd5 {[%emt 0:10:05]} Nxd5 {[%emt 0:08:45]} 11. Nxd5 {[%emt 0:02:33]} exd5 {[%emt 0:01:25]} 12. Kb1 {[%emt 0:14:29]} Bf6 {[%emt 0:19:25]} 13. Nb3 {[%emt 0:12:20]} Re8 {[%emt 0:10:29]} 14. Bc5 {[%emt 0:04:12]} Be6 {[%emt 0:17:51]} 15. Nd4 {[%emt 0:02:40]} Rc8 {[%emt 0:02:02]} 16. Nxe6 {[%emt 0:08:13]} fxe6 {[%emt 0:00:06]} 17. f4 {[%emt 0:02:34]} b6 {[%emt 0:03:39]} 18. Bf2 {[%emt 0:01:16]} Na5 {[%emt 0:01:13]} 19. c3 {[%emt 0:03:29]} Nc4 {[%emt 0:01:12]} 20. Bxc4 {[%emt 0:03:10]} Rxc4 {[%emt 0:00:24]} 21. Rhe1 {[%emt 0:00:42]} Rc7 {[%emt 0:10:48]} 22. f5 {[%emt 0:01:05]} exf5 {[%emt 0:00:56]} 23. Rxe8+ {[%emt 0:00:18]} Qxe8 {[%emt 0:00:04]} 24. Qxd5+ {[%emt 0:00:08]} Rf7 {[%emt 0:00:39]} 25. Re1 {[%emt 0:03:27]} Qd7 {[%emt 0:01:19]} 26. Qb3 {[%emt 0:01:53]} g6 {[%emt 0:00:46]} 27. Rd1 {[%emt 0:01:07]} Qc6 {[%emt 0:01:00]} 28. Qd5 {[%emt 0:04:00]} Qxd5 {[%emt 0:00:36]} 29. Rxd5 {[%emt 0:00:03]} Re7 {[%emt 0:00:15]} 30. Kc2 {[%emt 0:00:11]} Kf7 {[%emt 0:04:31]} 31. Bg3 {[%emt 0:01:27]} h5 {[%emt 0:01:59]} 32. h3 {[%emt 0:00:56]} Re2+ {[%emt 0:01:04]} 33. Rd2 {[%emt 0:00:04]} Rxd2+ {[%emt 0:01:05]} 34. Kxd2 {[%emt 0:00:05]} Ke6 {[%emt 0:00:12]} 35. b3 {[%emt 0:01:09]} Kd5 {[%emt 0:00:39]} 36. Kd3 {[%emt 0:00:24]} Bg7 {[%emt 0:00:43]} 37. Bf2 {[%emt 0:01:14]} Kc6 {[%emt 0:00:21]} 38. c4 {[%emt 0:01:14]} a6 {[%emt 0:00:23]} 39. Be3 {[%emt 0:00:35]} Bf8 {[%emt 0:00:38]} 40. Bd4 {[%emt 0:00:00]} Be7 {[%emt 0:00:00]} 41. Ke2 {[%emt 0:06:38]} Bd8 {[%emt 0:07:49]} 1/2-1/2

[Event "69th RUS-ch Women Higher League 2019"]
[Site "Yaroslavl"]
[Date "2019.06.27"]
[Round "1.10"]
[White "Voit, Daria"]
[Black "Matveeva, Olga"]
[Result "1-0"]
[ECO "A48"]
[WhiteElo "2339"]
[BlackElo "2189"]
[Annotator "NA"]
[PlyCount "91"]
[EventDate "2019.06.27"]
[EventType "swiss"]
[EventCountry "RUS"]
[SourceTitle "playchess.com"]
[Source "ChessBase"]
[SourceQuality "1"]
[TimeControl "40/5400+30:1800+30"]

1. d4 {[%emt 0:00:00]} Nf6 {[%emt 0:00:00]} 2. Nf3 {[%emt 0:00:00]} g6 {[%emt 0:00:00]} 3. c4 {[%emt 0:00:20]} Bg7 {[%emt 0:00:00]} 4. Nc3 {[%emt 0:00:11]} O-O {[%emt 0:00:00]} 5. Bg5 {[%emt 0:00:33]} c5 {[%emt 0:00:08]} 6. d5 {[%emt 0:00:21]} h6 {[%emt 0:00:25]} 7. Bh4 {[%emt 0:02:51]} d6 {[%emt 0:00:15]} 8. e3 {[%emt 0:09:20]} g5 {[%emt 0:00:44]} 9. Bg3 {[%emt 0:00:03]} Nh5 {[%emt 0:00:49]} 10. Nd2 {[%emt 0:00:50]} Nxg3 {[%emt 0:01:52]} 11. hxg3 {[%emt 0:00:32]} Na6 {[%emt 0:04:46]} 12. Bd3 {[%emt 0:01:08]} f5 {[%emt 0:04:05]} 13. a3 {[%emt 0:11:03]} Nc7 {[%emt 0:04:01]} 14. Qc2 {[%emt 0:06:40]} e6 {[%emt 0:10:55]} 15. dxe6 {[%emt 0:20:39]} Bxe6 {[%emt 0:00:18]} 16. e4 {[%emt 0:00:38]} f4 {[%emt 0:31:50]} 17. gxf4 {[%emt 0:00:30]} Rxf4 {[%emt 0:01:10]} 18. Nf1 {[%emt 0:22:14]} b5 {[%emt 0:10:59]} 19. cxb5 {[%emt 0:05:25]} c4 {[%emt 0:02:44]} 20. Be2 {[%emt 0:00:06]} a6 {[%emt 0:05:13]} 21. bxa6 {[%emt 0:02:05]} Nxa6 {[%emt 0:05:22]} 22. Ne3 {[%emt 0:00:30]} Rc8 {[%emt 0:07:58]} 23. Rd1 {[%emt 0:01:52]} Qf8 {[%emt 0:02:33]} 24. Ncd5 {[%emt 0:08:25]} Rxf2 {[%emt 0:03:31]} 25. Ne7+ {[%emt 0:01:08]} Qxe7 {[%emt 0:00:07]} 26. Kxf2 {[%emt 0:00:03]} Qf7+ {[%emt 0:01:52]} 27. Ke1 {[%emt 0:02:20]} Be5 {[%emt 0:00:49]} 28. Rxh6 {[%emt 0:00:38]} Bg3+ {[%emt 0:00:16]} 29. Kd2 {[%emt 0:00:02]} c3+ {[%emt 0:00:11]} 30. bxc3 {[%emt 0:00:11]} Nc5 {[%emt 0:00:27]} 31. Rf1 {[%emt 0:01:42]} Qb7 {[%emt 0:01:29]} 32. Rg6+ {[%emt 0:00:59]} Kh7 {[%emt 0:00:15]} 33. Rxe6 {[%emt 0:00:54]} Nxe6 {[%emt 0:00:07]} 34. e5+ {[%emt 0:00:02]} Kg8 {[%emt 0:00:48]} 35. Bg4 {[%emt 0:01:12]} Re8 {[%emt 0:00:42]} 36. exd6 {[%emt 0:01:26]} Bf4 {[%emt 0:00:10]} 37. Rf3 {[%emt 0:00:50]} Qd5+ {[%emt 0:00:55]} 38. Ke1 {[%emt 0:00:30]} Qxd6 {[%emt 0:00:33]} 39. Qg6+ {[%emt 0:00:25]} Ng7 {[%emt 0:00:24]} 40. Qxd6 {[%emt 0:00:00]} Bxd6 {[%emt 0:00:00]} 41. a4 {[%emt 0:00:29]} Re4 {[%emt 0:05:35]} 42. Ke2 {[%emt 0:14:03]} Rxa4 {[%emt 0:03:06]} 43. Kd3 {[%emt 0:01:38]} Bc5 {[%emt 0:04:15]} 44. Nd5 {[%emt 0:01:00]} Ne8 {[%emt 0:07:33]} 45. Bd7 {[%emt 0:00:26]} g4 {[%emt 0:02:30]} 46. Rg3 {[%emt 0:01:29]} 1-0

[Event "69th RUS-ch Women Higher League 2019"]
[Site "Yaroslavl"]
[Date "2019.06.27"]
[Round "1.11"]
[White "Markelova, Lubov"]
[Black "Charochkina, Daria"]
[Result "0-1"]
[ECO "A37"]
[WhiteElo "2186"]
[BlackElo "2338"]
[Annotator "NA"]
[PlyCount "60"]
[EventDate "2019.06.27"]
[EventType "swiss"]
[EventCountry "RUS"]
[SourceTitle "playchess.com"]
[Source "ChessBase"]
[SourceQuality "1"]
[TimeControl "40/5400+30:1800+30"]

1. Nf3 {[%emt 0:00:00]} c5 {[%emt 0:00:00]} 2. c4 {[%emt 0:00:00]} g6 {[%emt 0:00:00]} 3. Nc3 {[%emt 0:01:34]} Bg7 {[%emt 0:00:09]} 4. g3 {[%emt 0:01:41]} Nc6 {[%emt 0:01:39]} 5. Bg2 {[%emt 0:00:39]} e6 {[%emt 0:00:06]} 6. d3 {[%emt 0:03:49]} Nge7 {[%emt 0:00:19]} 7. Bd2 {[%emt 0:04:22]} O-O {[%emt 0:01:31]} 8. Qc1 {[%emt 0:03:46]} d5 {[%emt 0:18:46]} 9. h4 {[%emt 0:05:16]} d4 {[%emt 0:21:07]} 10. Ne4 {[%emt 0:06:57]} b6 11. h5 {[%emt 0:16:54]} f5 {[%emt 0:00:15]} 12. Neg5 {[%emt 0:01:46]} h6 {[%emt 0:00:30]} 13. Nh7 {[%emt 0:29:35]} Kxh7 {[%emt 0:13:28]} 14. hxg6+ {[%emt 0:00:42]} Kxg6 {[%emt 0:02:16]} 15. Bxh6 {[%emt 0:00:45]} Bf6 {[%emt 0:06:53]} 16. Ng5 {[%emt 0:05:57]} Rg8 {[%emt 0:16:34]} 17. Bf3 {[%emt 0:03:09]} Bxg5 {[%emt 0:04:00]} 18. Bxg5 {[%emt 0:02:25]} Rh8 {[%emt 0:02:24]} 19. Bh4 {[%emt 0:04:55]} Rxh4 {[%emt 0:03:44]} 20. gxh4 Qh8 {[%emt 0:00:16]} 21. Qg5+ {[%emt 0:04:01]} Kf7 {[%emt 0:00:34]} 22. Kd2 {[%emt 0:02:02]} Bd7 {[%emt 0:00:09]} 23. Bh5+ {[%emt 0:00:27]} Kf8 24. Rag1 Ne5 {[%emt 0:02:03]} 25. Rg3 {[%emt 0:01:10]} Nf7 {[%emt 0:02:14]} 26. Bxf7 {[%emt 0:00:24]} Kxf7 {[%emt 0:00:02]} 27. Qf4 {[%emt 0:00:38]} e5 {[%emt 0:00:44]} 28. Qf3 {[%emt 0:00:31]} Bc6 {[%emt 0:00:18]} 29. e4 {[%emt 0:00:32]} dxe3+ {[%emt 0:00:04]} 30. Qxe3 {[%emt 0:00:20]} Bxh1 {[%emt 0:01:10]} 0-1

[Event "69th RUS-ch Women Higher League 2019"]
[Site "Yaroslavl"]
[Date "2019.06.27"]
[Round "1.12"]
[White "Solozhenkina, Elizaveta"]
[Black "Filippova, Darya"]
[Result "1-0"]
[ECO "B17"]
[WhiteElo "2324"]
[BlackElo "2174"]
[Annotator "NA"]
[PlyCount "125"]
[EventDate "2019.06.27"]
[EventType "swiss"]
[EventCountry "RUS"]
[SourceTitle "playchess.com"]
[Source "ChessBase"]
[SourceQuality "1"]
[TimeControl "40/5400+30:1800+30"]

1. e4 {[%emt 0:00:00]} c6 {[%emt 0:00:00]} 2. d4 {[%emt 0:00:00]} d5 {[%emt 0:00:00]} 3. Nc3 {[%emt 0:00:00]} dxe4 {[%emt 0:00:00]} 4. Nxe4 {[%emt 0:00:00]} Nd7 {[%emt 0:00:22]} 5. Nf3 {[%emt 0:01:00]} Ngf6 {[%emt 0:01:10]} 6. Nxf6+ {[%emt 0:00:10]} Nxf6 {[%emt 0:03:31]} 7. c3 {[%emt 0:00:13]} Bg4 {[%emt 0:07:10]} 8. h3 {[%emt 0:00:11]} Bh5 {[%emt 0:01:25]} 9. g4 {[%emt 0:00:54]} Bg6 {[%emt 0:01:05]} 10. Ne5 {[%emt 0:00:15]} Nd7 {[%emt 0:14:05]} 11. Nxg6 {[%emt 0:06:16]} hxg6 {[%emt 0:00:12]} 12. d5 {[%emt 0:00:21]} Qc7 {[%emt 0:19:05]} 13. Bg2 {[%emt 0:08:49]} cxd5 {[%emt 0:05:40]} 14. Qxd5 {[%emt 0:03:40]} Rb8 {[%emt 0:03:09]} 15. Bg5 {[%emt 0:08:26]} e6 {[%emt 0:01:44]} 16. Qd4 {[%emt 0:01:11]} e5 {[%emt 0:06:54]} 17. Qxa7 {[%emt 0:14:33]} Bc5 {[%emt 0:03:41]} 18. Qa4 {[%emt 0:00:06]} O-O {[%emt 0:00:55]} 19. Rd1 {[%emt 0:02:35]} b5 {[%emt 0:05:26]} 20. Qe4 {[%emt 0:06:09]} Nf6 {[%emt 0:02:15]} 21. Qc6 {[%emt 0:06:04]} Qa7 {[%emt 0:01:01]} 22. O-O {[%emt 0:04:15]} Rfc8 {[%emt 0:01:45]} 23. Qf3 {[%emt 0:00:57]} Nh7 {[%emt 0:01:30]} 24. Bc1 {[%emt 0:08:57]} Qxa2 {[%emt 0:01:16]} 25. Rfe1 {[%emt 0:00:59]} b4 {[%emt 0:04:20]} 26. Rxe5 {[%emt 0:05:15]} bxc3 {[%emt 0:00:25]} 27. bxc3 {[%emt 0:00:17]} Rb1 {[%emt 0:01:36]} 28. Re2 {[%emt 0:04:54]} Qa1 {[%emt 0:02:29]} 29. Ree1 {[%emt 0:01:04]} Qa4 {[%emt 0:02:17]} 30. Qd3 {[%emt 0:04:56]} Rcb8 {[%emt 0:02:37]} 31. Be4 {[%emt 0:02:33]} Nf6 {[%emt 0:01:10]} 32. Qxb1 {[%emt 0:05:36]} Rxb1 {[%emt 0:00:10]} 33. Bxb1 {[%emt 0:00:02]} Qc4 {[%emt 0:02:24]} 34. Be3 {[%emt 0:01:47]} Ba3 {[%emt 0:00:51]} 35. Bd4 {[%emt 0:01:41]} Nd5 {[%emt 0:01:38]} 36. Bd3 {[%emt 0:00:20]} Qc8 {[%emt 0:00:28]} 37. c4 {[%emt 0:02:19]} Nf4 {[%emt 0:00:30]} 38. Bf1 {[%emt 0:00:04]} Qc6 {[%emt 0:00:35]} 39. Be5 {[%emt 0:01:56]} Ne6 {[%emt 0:00:38]} 40. Rd3 {[%emt 0:00:00]} Bb4 {[%emt 0:00:00]} 41. Rc1 {[%emt 0:05:03]} Bc5 {[%emt 0:04:32]} 42. Bg2 {[%emt 0:04:32]} Qb6 {[%emt 0:03:31]} 43. Rd2 {[%emt 0:03:29]} f6 {[%emt 0:03:30]} 44. Rb2 {[%emt 0:06:10]} Qa6 {[%emt 0:01:47]} 45. Rb8+ {[%emt 0:06:42]} Kh7 {[%emt 0:00:34]} 46. Ra8 {[%emt 0:00:49]} Qb6 {[%emt 0:01:13]} 47. Bg3 {[%emt 0:00:14]} f5 {[%emt 0:02:05]} 48. Bd5 {[%emt 0:05:44]} f4 {[%emt 0:01:03]} 49. Bh4 {[%emt 0:00:55]} Nc7 {[%emt 0:03:09]} 50. Rd8 {[%emt 0:01:46]} g5 {[%emt 0:03:08]} 51. Be4+ {[%emt 0:00:47]} g6 {[%emt 0:00:08]} 52. Bxg5 {[%emt 0:00:26]} Bxf2+ {[%emt 0:00:46]} 53. Kg2 {[%emt 0:00:14]} Bg3 {[%emt 0:01:23]} 54. Rc2 {[%emt 0:00:36]} Qe3 {[%emt 0:04:28]} 55. Rd7+ {[%emt 0:00:28]} Kg8 {[%emt 0:00:08]} 56. Bf3 {[%emt 0:00:28]} Qc5 {[%emt 0:01:55]} 57. Bf6 {[%emt 0:00:48]} g5 {[%emt 0:02:57]} 58. Bd4 {[%emt 0:00:23]} Qa5 {[%emt 0:00:27]} 59. Rb2 {[%emt 0:00:23]} Na6 {[%emt 0:00:38]} 60. Bd5+ {[%emt 0:00:35]} Kf8 {[%emt 0:00:07]} 61. Re2 {[%emt 0:00:12]} f3+ {[%emt 0:00:32]} 62. Kxf3 {[%emt 0:00:06]} Qa3+ {[%emt 0:00:09]} 63. Re3 {[%emt 0:00:04] Ke7} 1-0

[Event "69th RUS-ch Women Higher League 2019"]
[Site "Yaroslavl"]
[Date "2019.06.27"]
[Round "1.13"]
[White "Nosacheva, Mariya"]
[Black "Belenkaya, Dina"]
[Result "0-1"]
[ECO "B18"]
[WhiteElo "2150"]
[BlackElo "2321"]
[Annotator "NA"]
[PlyCount "72"]
[EventDate "2019.06.27"]
[EventType "swiss"]
[EventCountry "RUS"]
[SourceTitle "playchess.com"]
[Source "ChessBase"]
[SourceQuality "1"]
[TimeControl "40/5400+30:1800+30"]

1. e4 {[%emt 0:00:00]} c6 {[%emt 0:00:00]} 2. d4 {[%emt 0:00:00]} d5 {[%emt 0:00:00]} 3. Nc3 {[%emt 0:00:00]} dxe4 {[%emt 0:00:00]} 4. Nxe4 {[%emt 0:00:00]} Bf5 {[%emt 0:00:00]} 5. Nc5 {[%emt 0:00:22]} b6 {[%emt 0:01:39]} 6. Nb3 {[%emt 0:00:30]} e6 {[%emt 0:00:55]} 7. Nf3 {[%emt 0:00:20]} h6 {[%emt 0:01:13]} 8. g3 {[%emt 0:01:41]} Nf6 {[%emt 0:00:30]} 9. Bg2 {[%emt 0:00:26]} Bd6 {[%emt 0:01:19]} 10. O-O {[%emt 0:00:22]} O-O {[%emt 0:00:18]} 11. Qe2 {[%emt 0:01:36]} a5 {[%emt 0:00:51]} 12. a4 {[%emt 0:20:16]} Qc7 {[%emt 0:01:11]} 13. c3 {[%emt 0:05:04]} Nbd7 {[%emt 0:03:02]} 14. Nbd2 {[%emt 0:01:52]} Nd5 {[%emt 0:04:36]} 15. Nc4 {[%emt 0:02:48]} Be7 {[%emt 0:01:12]} 16. Nfe5 {[%emt 0:03:15]} Nxe5 {[%emt 0:01:17]} 17. Nxe5 {[%emt 0:06:36]} Rac8 {[%emt 0:03:53]} 18. Re1 {[%emt 0:07:45]} Rfd8 {[%emt 0:05:17]} 19. Qh5 {[%emt 0:08:20]} Bf8 {[%emt 0:01:55]} 20. Be3 {[%emt 0:19:26]} c5 {[%emt 0:05:03]} 21. Qe2 {[%emt 0:04:16]} Bd6 {[%emt 0:05:04]} 22. Nc4 {[%emt 0:03:39]} Nxe3 {[%emt 0:04:32]} 23. fxe3 {[%emt 0:01:01]} cxd4 {[%emt 0:12:36]} 24. Nxd6 {[%emt 0:01:32]} d3 {[%emt 0:01:39]} 25. Nb5 {[%emt 0:00:14]} dxe2 {[%emt 0:00:43]} 26. Nxc7 {[%emt 0:00:05]} Rxc7 {[%emt 0:00:33]} 27. Rxe2 {[%emt 0:00:07]} Rcd7 {[%emt 0:07:54]} 28. Kf2 {[%emt 0:02:47]} e5 {[%emt 0:01:22]} 29. h3 {[%emt 0:03:58]} Be6 {[%emt 0:11:49]} 30. Ke1 {[%emt 0:04:20]} Bc4 {[%emt 0:01:54]} 31. Rf2 {[%emt 0:00:12]} Rd3 {[%emt 0:01:06]} 32. Re2 {[%emt 0:00:06]} f5 {[%emt 0:00:45]} 33. Bc6 {[%emt 0:00:55]} R3d6 {[%emt 0:00:56]} 34. Bb5 {[%emt 0:00:14]} Bxe2 {[%emt 0:00:16]} 35. Bxe2 {[%emt 0:00:07]} Rd2 {[%emt 0:01:46]} 36. b4 {[%emt 0:00:33]} Rc2 {[%emt 0:01:10]} 0-1

[Event "69th RUS-ch Women Higher League 2019"]
[Site "Yaroslavl"]
[Date "2019.06.27"]
[Round "1.14"]
[White "Maltsevskaya, Aleksandra"]
[Black "Chkhan, Viktoria"]
[Result "1-0"]
[ECO "A06"]
[WhiteElo "2316"]
[BlackElo "2141"]
[Annotator "NA"]
[PlyCount "79"]
[EventDate "2019.06.27"]
[EventType "swiss"]
[EventCountry "RUS"]
[SourceTitle "playchess.com"]
[Source "ChessBase"]
[SourceQuality "1"]
[TimeControl "40/5400+30:1800+30"]

1. Nf3 {[%emt 0:00:00]} d5 {[%emt 0:00:00]} 2. g3 {[%emt 0:00:00]} Nf6 {[%emt 0:00:17]} 3. Bg2 {[%emt 0:00:00]} Bg4 {[%emt 0:01:50]} 4. O-O {[%emt 0:00:00]} e6 {[%emt 0:00:08]} 5. d3 {[%emt 0:01:04]} c5 {[%emt 0:00:15]} 6. c3 {[%emt 0:01:12]} Nc6 {[%emt 0:00:52]} 7. a3 {[%emt 0:00:22]} a5 {[%emt 0:03:05]} 8. a4 {[%emt 0:02:39]} Be7 {[%emt 0:01:05]} 9. Na3 {[%emt 0:00:48]} O-O {[%emt 0:00:13]} 10. Nb5 {[%emt 0:00:28]} Rc8 {[%emt 0:11:02]} 11. h3 {[%emt 0:04:18]} Bh5 {[%emt 0:01:56]} 12. Bf4 {[%emt 0:01:16]} Qb6 {[%emt 0:19:07]} 13. g4 {[%emt 0:16:20]} Bg6 {[%emt 0:00:49]} 14. Bg3 {[%emt 0:01:31]} Rfd8 {[%emt 0:16:25]} 15. Nh4 {[%emt 0:02:16]} Na7 {[%emt 0:06:06]} 16. Nxa7 {[%emt 0:03:00]} Qxa7 {[%emt 0:00:05]} 17. Qb3 {[%emt 0:01:59]} c4 {[%emt 0:06:02]} 18. dxc4 {[%emt 0:01:32]} Rxc4 {[%emt 0:00:24]} 19. Nxg6 {[%emt 0:01:17]} hxg6 {[%emt 0:00:09]} 20. Rfd1 {[%emt 0:08:22]} Ne4 {[%emt 0:10:51]} 21. Bxe4 {[%emt 0:01:12]} Rxe4 {[%emt 0:00:05]} 22. Qb5 {[%emt 0:04:08]} Rc4 {[%emt 0:03:34]} 23. Rd3 {[%emt 0:03:58]} Rc5 {[%emt 0:05:43]} 24. Qb3 {[%emt 0:00:07]} Qa6 {[%emt 0:00:34]} 25. Rad1 {[%emt 0:01:17]} Rc4 {[%emt 0:04:12]} 26. e3 {[%emt 0:06:40]} Bf6 {[%emt 0:02:54]} 27. Qc2 {[%emt 0:29:25]} Rdc8 {[%emt 0:02:00]} 28. Ra1 {[%emt 0:01:25]} R4c6 {[%emt 0:01:20]} 29. Qd1 {[%emt 0:01:55]} Rb6 {[%emt 0:00:52]} 30. Rb1 {[%emt 0:00:58]} Qc4 {[%emt 0:01:40]} 31. b3 {[%emt 0:04:06]} Qa6 {[%emt 0:00:51]} 32. b4 {[%emt 0:00:09]} axb4 {[%emt 0:00:59]} 33. cxb4 {[%emt 0:00:11]} Qc4 {[%emt 0:00:26]} 34. b5 {[%emt 0:00:24]} Ra8 {[%emt 0:00:36]} 35. h4 {[%emt 0:00:51]} e5 {[%emt 0:00:30]} 36. g5 {[%emt 0:01:12]} Be7 {[%emt 0:00:05]} 37. Rxd5 {[%emt 0:00:43]} Rxa4 {[%emt 0:00:29]} 38. Rxe5 {[%emt 0:00:45]} Bc5 {[%emt 0:00:50]} 39. Re8+ {[%emt 0:00:18]} Kh7 {[%emt 0:00:07]} 40. Qd8 {[%emt 0:00:00]} 1-0